{"text_format":"3","workbook":"xlsx","n_sheets":3,"sheets":["Экономика","8 кл","9-11 кл"],"not_rendered":{"defined_names":1},"read":"whole","date_system":"1900"}

{"sheet":"Экономика","index":0,"n_rows":191,"n_cols":12,"rows_kept":191}
[]
["Предварительный протокол по итогам муниципального этапа ВсОШ/РОШ  по предмету ЭКОНОМИКА в 2018-2019 учебном году г. Казани       "]
[]
["№ п/п","Муниципалитет","Полное наименование образовательного учреждения (по уставу)","Фамилия","Имя","Отчество","Класс","Итоговый балл","Максимальный балл","Статус","Фамилия, имя, отчество педагога, подготовившего участника олимпиады","Полное наименование образовательного учреждения (по уставу)"]
[1,"Приволжский","МАОУ «Гимназия №19»","Нутфуллина","А.","И.",11,62,{"$f":"10+20+30+20+15","v":95},"Победитель","Коган Дина Ильдусовна","МАОУ «Гимназия №19» "]
[2,"Вахитовский","Общеобразовательная школа-интернат «Лицей имени Н. И. Лобачевского» К(П)ФУ","Хусаинов","М. ","А.",11,51,95,"Призер","Билалова Дина Султановна","Общеобразовательная школа-интернат «Лицей имени Н. И. Лобачевского» К(П)ФУ "]
[3,"Ново-Савиновский","МАОУ «Средняя общеобразовательная школа №146 с углубленным изучением отдельных предметов»","Талипов","Т.","А.",11,50,95,"Призер",null,"МАОУ «Средняя общеобразовательная школа №146 с углубленным изучением отдельных предметов»"]
[4,"Вахитовский","Общеобразовательная школа-интернат «Лицей имени Н. И. Лобачевского» К(П)ФУ","Билалова","Н.","Ф.",11,48,95,"Призер","Володина Алена Игоревна","Общеобразовательная школа-интернат «Лицей имени Н. И. Лобачевского» К(П)ФУ "]
[5,"Вахитовский","ФГКОУ «Казанское суворовское военное училище  МО РФ»","Орлов","Б.","М.",11,36,95,null,"Арапов Константин Александрович","  ФГКОУ Казанское суворовское военное училище МО РФ"]
[6,"Советский","МБОУ «Гимназия №93 »","Хазеев","Р.","А.",11,26,95,null,"Гарифуллина Виктория Викторовна","        МБОУ «Гимназия №93 » "]
[7,"Московский","МБОУ «Гимназия №75 с этнокультурным русским компонентом»","Зайцева ","А.","Е.",11,24,95,null,"Симонов Юрий Федорович","  МБОУ «Гимназия №75 с этнокультурным русским компонентом» "]
[8,"Авиастроительный","МБОУ «Лицей №145»","Мартынов","А.","С.",11,24,95,null,"Фомина Евгения Александровна"," МБОУ «Лицей №145» "]
[9,"Ново-Савиновский","МБОУ «Средняя общеобразовательная школа № 9 с углубленным изучением английского языка»","Лученко","Е.","Л.",11,23,95,null,"Валеева Анна Борисовна","МБОУ «Средняя общеобразовательная школа № 9 с углубленным изучением английского языка» "]
[10,"Московский","МБОУ «Гимназия №75 с этнокультурным русским компонентом»","Павлова ","А.","В.",11,23,95,null,"Симонов Юрий Федорович","  МБОУ «Гимназия №75 с этнокультурным русским компонентом» "]
[11,"Ново-Савиновский","МБОУ «Средняя общеобразовательная школа №170 с углублённым изучением отдельных предметов»","Бариева","А.","Д.",11,20,95,null,"Аглямова Алиса Габдрашитовна","МБОУ «Средняя общеобразовательная школа №170 с углублённым изучением отдельных предметов» "]
[12,"Приволжский","МБОУ «Татаро-английская гимназия №16»","Залялеев","И.","М.",11,20,95,null,"Габидуллина Фарида Юнусовна","МБОУ «Татаро-английская гимназия №16» "]
[13,"Приволжский","МБОУ «Средняя общеобразовательная школа №82 с углубленным изучением отдельных предметов»","Бирюкова","В.","А.",11,19,95,null,"Зарубежнова Евгения Михайловна","МБОУ «Средняя общеобразовательная школа №82 с углубленным изучением отдельных предметов» "]
[14,"Кировский","МБОУ «Средняя общеобразовательная школа №70 с углубленным изучением отдельных предметов»","Сергеева","Е.","А.",11,19,95,null,"Никифорова Татьяна Егоровна","                     МБОУ «Средняя общеобразовательная школа №70 с углубленным изучением отдельных предметов» "]
[15,"Московский","МБОУ «Гимназия №75 с этнокультурным русским компонентом»","Халиков","А.","А.",11,19,95,null,"Симонов Юрий Федорович"," МБОУ «Гимназия №75 с этнокультурным русским компонентом» "]
[16,"Приволжский","МБОУ «Средняя общеобразовательная школа №82 с углубленным изучением отдельных предметов»","Бурганова","А.","К.",11,18,95,null,"Зарубежнова Евгения Михайловна","МБОУ «Средняя общеобразовательная школа №82 с углубленным изучением отдельных предметов» "]
[17,"Советский","МАОУ «Лицей № 121»","Гайнутдинов","М.","М.",11,18,95,null,"Хасанова Флера Анваровна","МАОУ «Лицей № 121» "]
[18,"Приволжский","МАОУ «Гимназия №19»","Мурзина","А.","А.",11,18,95,null,"Вишневский Тимур Дмитриевич","МАОУ «Гимназия №19» "]
[19,"Московский","МБОУ «Гимназия №9»","Камалиева","А.","Л.",11,17,95,null,"Мюллер Георгий Александрович","МБОУ «Гимназия №9» "]
[20,"Приволжский","МБОУ «Гимназия №6»","Куликов","М. ","А.",11,17,95,null,"Гимадеева Чулпан Нуретдиновна","МБОУ «Гимназия №6» "]
[21,"Советский","МАОУ «Лицей № 121»","Мифтахов","А.","М.",11,17,95,null,"Хасанова Флера Анваровна","МАОУ «Лицей № 121» "]
[22,"Приволжский","МБОУ «Средняя общеобразовательная школа №82 с углубленным изучением отдельных предметов»","Хуснутдинов","К.","Н.",11,17,95,null,"Зарубежнова Евгения Михайловна"," МБОУ «Средняя общеобразовательная школа №82 с углубленным изучением отдельных предметов» "]
[23,"Московский","МБОУ «Гимназия №122 имени Ж.А Зайцевой»","Абрамов-Иревли","Г.","Д.",11,16,95,null,"Садыков Жаудат Назипович","МБОУ «Гимназия №122 имени Ж.А Зайцевой» "]
[24,"Советский","МАОУ «Лицей № 121»","Купан","Л.","Т.",11,16,95,null,"Хасанова Флера Анваровна","МАОУ «Лицей № 121» "]
[25,"Авиастроительный","МБОУ «Лицей №145»","Садыков","А.","Н.",11,16,95,null,"Фомина Евгения Александровна","  МБОУ «Лицей №145» "]
[26,"Кировский","МБОУ «Средняя русско-татарская общеобразовательная школа №57»","Фазуллина","А.","А.",11,16,95,null,"Киляшова Кристина Алексеевна","МБОУ «Средняя русско-татарская общеобразовательная школа №57» "]
[27,"Приволжский","МБОУ «Средняя общеобразовательная школа №24 с углубленным изучением отдельных предметов»","Коннов","В.","В.",11,15,95,null,"Старшинова Виктория Александровна","  МБОУ «Средняя общеобразовательная школа №24 с углубленным изучением отдельных предметов» "]
[28,"Советский","МАОУ «Лицей № 121»","Фаттахова","Д.","М.",11,15,95,null,"Хасанова Флера Анваровна"," МАОУ «Лицей № 121» "]
[29,"Московский","ГБМБУ «КФУ каршындагы 2 нче татар гимназиясе» МБОУ «Татарская гимназия №2 при КФУ»","Зиннатуллина","А. ","Р.",11,14,95,null,"Фахртдинов Ильнар Ирекович"," ГБМБУ «КФУ каршындагы 2 нче татар гимназиясе» МБОУ «Татарская гимназия №2 при КФУ» "]
[30,"Московский","МБОУ «Гимназия №122 имени Ж.А Зайцевой»","Контурова","И.","А.",11,14,95,null,"Садыков Жаудат Назипович"," МБОУ «Гимназия №122 имени Ж.А Зайцевой» "]
[31,"Кировский","МБОУ «СОШ №137»","Литвинова","Н. ","А.",11,14,95,null,"Клековкина Любовь Анатольевна","МБОУ «СОШ №137» "]
[32,"Ново-Савиновский","МБОУ «Средняя общеобразовательная школа №170 с углублённым изучением отдельных предметов»","Чудинова","Д.","С.",11,14,95,null,"Аглямова Алиса Габдрашитовна","МБОУ «Средняя общеобразовательная школа №170 с углублённым изучением отдельных предметов» "]
[33,"Вахитовский","ФГКОУ «Казанское суворовское военное училище  МО РФ»","Шаймарданов","О.","Р.",11,14,{"$f":"10+20+30+20+15","v":95},null,"Арапов Константин Александрович"," ФГКОУ Казанское суворовское военное училище МО РФ"]
[34,"Кировский","МБОУ «Средняя общеобразовательная школа №70 с углубленным изучением отдельных предметов»","Киямдинов","И.","Р.",11,13,95,null,"Никифорова Татьяна Егоровна","                   МБОУ «Средняя общеобразовательная школа №70 с углубленным изучением отдельных предметов» "]
[35,"Вахитовский","МБОУ «Гимназия №3»","Мухамадиев","Г.","Д.",11,13,95,null,"Хабибуллина Фарида Кутдусовна","    МБОУ «Гимназия №3» "]
[36,"Авиастроительный","МБОУ «Гимназия №10»","Сиразеева ","А.","Р.",11,13,95,null,"Валитова Зульфия Камилевна","  МБОУ «Гимназия №10» "]
[37,"Ново-Савиновский","МБОУ «Средняя общеобразовательная татарско-русская школа №23 с углубленным изучением отдельных предметов»","Белалова","А.","Р.",11,12,95,null,"Краюшкина Любовь Викторовна","МБОУ «Средняя общеобразовательная татарско-русская школа №23 с углубленным изучением отдельных предметов» "]
[38,"Ново-Савиновский","Муниципальное бюджетное общеобразовательное учреждение «Средняя общеобразовательная татарско-русская школа №113 с углублённым изучением отдельных предметов»","Усанова ","Л. ","А.  ",11,12,95,null,"Мухаметзянов Ильяс Мулланурович","Муниципальное бюджетное общеобразовательное учреждение «Средняя общеобразовательная татарско-русская школа №113 с углублённым изучением отдельных предметов» "]
[39,"Советский","МБОУ «Гимназия №93 »","Гайсина","А.","Р.",11,11,95,null,"Гарифуллина Виктория Викторовна","       МБОУ «Гимназия №93 » "]
[40,"Московский","МБОУ «Гимназия №122 имени Ж.А Зайцевой»","Ганиева","Р.","А.",11,10,95,null,"Садыков Жаудат Назипович","МБОУ «Гимназия №122 имени Ж.А Зайцевой» "]
[41,"Московский","Муниципальное бюджетное общеобразовательное учреждение «Средняя общеобразовательная школа №20»","Закирова","К.","О.",11,10,95,null,"Салимова Зайтуна Муфараковна","     Муниципальное бюджетное общеобразовательное учреждение «Средняя общеобразовательная школа №20» "]
[42,"Ново-Савиновский","МБОУ «Средняя общеобразовательная школа №170 с углублённым изучением отдельных предметов»","Мингалеев","И.","М.",11,10,95,null,"Аглямова Алиса Габдрашитовна","     МБОУ «Средняя общеобразовательная школа №170 с углублённым изучением отдельных предметов» "]
[43,"Московский","МБОУ «Гимназия №122 имени Ж.А Зайцевой»","Норкин","М.","М.",11,10,95,null,"Садыков Жаудат Назипович"," МБОУ «Гимназия №122 имени Ж.А Зайцевой» "]
[44,"Московский","Муниципальное бюджетное общеобразовательное учреждение «Средняя общеобразовательная школа №20»","Петров","Ю.","В.",11,10,95,null,"Салимова Зайтуна Муфараковна","       Муниципальное бюджетное общеобразовательное учреждение «Средняя общеобразовательная школа №20» "]
[45,"Ново-Савиновский","МБОУ «Средняя общеобразовательная школа №170 с углублённым изучением отдельных предметов»","Гурьянова ","А. ","А.",11,9,95,null,"Аглямова Алиса Габдрашитовна","    МБОУ «Средняя общеобразовательная школа №170 с углублённым изучением отдельных предметов» "]
[46,"Советский","МАОУ «Средняя общеобразовательная школа №141 с углубленным изучением отдельных предметов»","Китаев","И.","А.",11,9,95,null,"Гогонина Светлана Владимировна","МАОУ «Средняя общеобразовательная школа №141 с углубленным изучением отдельных предметов» "]
[47,"Приволжский","МБОУ «Татаро-английская гимназия №16»","Рагузин","Б.","В.",11,9,95,null,"Габидуллина Фарида Юнусовна","МБОУ «Татаро-английская гимназия №16» "]
[48,"Советский","МАОУ «Лицей № 121»","Рябинин","Д.","Д.",11,8,95,null,"Хасанова Флера Анваровна","МАОУ «Лицей № 121» "]
[49,"Московский","ГБМБУ «КФУ каршындагы 2 нче татар гимназиясе» МБОУ «Татарская гимназия №2 при КФУ»","Фахриева ","Э.","А.",11,8,95,null,"Фахртдинов Ильнар Ирекович"," ГБМБУ «КФУ каршындагы 2 нче татар гимназиясе» МБОУ «Татарская гимназия №2 при КФУ» "]
[50,"Московский","Муниципальное бюджетное общеобразовательное учреждение «Средняя общеобразовательная школа №20»","Анисимов","А.","В.",11,7,95,null,"Салимова Зайтуна Муфараковна","      Муниципальное бюджетное общеобразовательное учреждение «Средняя общеобразовательная школа №20» "]
[51,"Кировский","МБОУ «Средняя общеобразовательная школа №153»","Давыдова","Ю.","В.",11,7,95,null,"Никитина Татьяна Васильевна","МБОУ «Средняя общеобразовательная школа №153» "]
[52,"Ново-Савиновский","Муниципальное бюджетное общеобразовательное учреждение «Средняя общеобразовательная татарско-русская школа №113 с углублённым изучением отдельных предметов»","Мусаткина ","У.   ","Е. ",11,7,95,null,"Мухаметзянов Ильяс Мулланурович","Муниципальное бюджетное общеобразовательное учреждение «Средняя общеобразовательная татарско-русская школа №113 с углублённым изучением отдельных предметов» "]
[53,"Приволжский","МБОУ «Гимназия №21»","Канзаев","Д.","С.",11,5,95,null,"Филюнин Владимир Александрович","  МБОУ «Гимназия №21» "]
[54,"Советский","МБОУ «Средняя общеобразовательная школа №175»","Мухамедшина   ","Д.","Р.",11,2,95,null,"Саляхутдинова Гульназ Шамилевна"," МБОУ «Средняя общеобразовательная школа №175» "]
[55,"Вахитовский","Общеобразовательная школа-интернат «Лицей имени Н. И. Лобачевского» К(П)ФУ","Курочкин","Д.","М.",10,66,95,"Победитель","Билалова Дина Султановна","Общеобразовательная школа-интернат «Лицей имени Н. И. Лобачевского» К(П)ФУ "]
[56,"Вахитовский","Общеобразовательная школа-интернат «Лицей имени Н. И. Лобачевского» К(П)ФУ","Хайрисламов","Т.","А.",10,58,95,"Призер","Билалова Дина Султановна","Общеобразовательная школа-интернат «Лицей имени Н. И. Лобачевского» К(П)ФУ "]
[57,"Ново-Савиновский","МАОУ «Лицей-интернат №7»","Якупов  ","К.","Л.",10,54,95,"Призер","Алексеева Лариса Владимировна","    МАОУ «Лицей-интернат №7» "]
[58,"Вахитовский","МАОУ «Лицей №131»","Новиков","С.","А.",10,50,95,"Призер","Коган Дина Ильдусовна","              МАОУ «Лицей №131» "]
[59,"Московский","МАОУ «Лицей-интернат №2» Московского района","Закиров","А.","А.",10,48,95,"Призер","Исмаилов Рашид Ильдарович"," МАОУ «Лицей-интернат №2» Московского района "]
[60,"Вахитовский","Общеобразовательная школа-интернат «Лицей имени Н. И. Лобачевского» К(П)ФУ","Кузнецов","Д.","В.",10,48,95,"Призер","Билалова Дина Султановна"," Общеобразовательная школа-интернат «Лицей имени Н. И. Лобачевского» К(П)ФУ "]
[61,"Вахитовский","Общеобразовательная школа-интернат «Лицей имени Н. И. Лобачевского» К(П)ФУ","Ахметшин","И.","И.",10,41,95,null,"Билалова Дина Султановна","Общеобразовательная школа-интернат «Лицей имени Н. И. Лобачевского» К(П)ФУ "]
[62,"Вахитовский","Общеобразовательная школа-интернат «Лицей имени Н. И. Лобачевского» К(П)ФУ","Хафизов","Д.","Р.",10,37,95,null,"Егорова Алефтина Николаевна","Общеобразовательная школа-интернат «Лицей имени Н. И. Лобачевского» К(П)ФУ "]
[63,"Вахитовский","МАОУ «Лицей №131»","Колчин","Л.","Д.",10,33,95,null,"Коган Дина Ильдусовна","            МАОУ «Лицей №131» "]
[64,"Ново-Савиновский","Инженерный лицей КНИТУ-КАИ","Михайлова","Л.","С.",10,32,95,null,"Ханбиков И Ф","  Инженерный лицей КНИТУ-КАИ "]
[65,"Ново-Савиновский","Инженерный лицей КНИТУ-КАИ","Макарушин","К.","А.",10,31,{"$f":"10+20+30+20+15","v":95},null,"Ханбиков И.Ф","  Инженерный лицей КНИТУ-КАИ "]
[66,"Советский","МБОУ «Гимназия №126»","Замалеева","А.","А.",10,30,95,null,"Гилязова Гульфия Габдулхаевна","МБОУ «Гимназия №126» "]
[67,"Московский","МАОУ «Лицей-интернат №2» Московского района","Мастюков","К.","Ш.",10,30,95,null,"Исмаилов Рашид Ильдарович","  МАОУ «Лицей-интернат №2» Московского района "]
[68,"Вахитовский","Общеобразовательная школа-интернат «Лицей имени Н. И. Лобачевского» К(П)ФУ","Себельзин","С.","А.",10,29,95,null,"Егорова Алефтина Николаевна","Общеобразовательная школа-интернат «Лицей имени Н. И. Лобачевского» К(П)ФУ "]
[69,"Советский","МАОУ «Средняя общеобразовательная школа №141 с углубленным изучением отдельных предметов»","Драгунов","В.","А.",10,25,95,null,"Гармашова Юлия Николаевна","МАОУ «Средняя общеобразовательная школа №141 с углубленным изучением отдельных предметов» "]
[70,"Ново-Савиновский","МАОУ «Лицей-интернат №7»","Гафиятуллин ","Р. ","Э.",10,23,95,null,"Алексеева Лариса Владимировна","     МАОУ «Лицей-интернат №7» "]
[71,"Вахитовский","МАОУ «Лицей №131»","Назарян","К.","В.",10,23,95,null,"Крылова Марина Сергеевна","        МАОУ «Лицей №131» "]
[72,"Авиастроительный","МБОУ «Средняя общеобразовательная школа №33 с углубленным изучением отдельных предметов»","Давлетшина","А.","З.",10,21,95,null,"Нуруллина Эльмира Рафиковна"," МБОУ «Средняя общеобразовательная школа №33 с углубленным изучением отдельных предметов» "]
[73,"Вахитовский","МАОУ «Лицей №131»","Зарипова","И.","М.",10,20,95,null,"Крылова Марина Сергеевна","            МАОУ «Лицей №131» "]
[74,"Вахитовский","МБОУ «Гимназия №96»","Терентьев","И.","А.",10,20,95,null,"Гиниатуллина Венера Ильдаровна","  МБОУ Гимназия №96"]
[75,"Приволжский","МАОУ «Гимназия №139»","Гайфуллина","Д.","Л.",10,19,95,null,"Полуенова Нина Васильевна","  МАОУ «Гимназия №139» "]
[76,"Приволжский","МАОУ «Гимназия №139»","Багаутдинова","А.","И.",10,18,95,null,"Полуенова Нина Васильевна","   МАОУ «Гимназия №139» "]
[77,"Советский","МБОУ «Лицей №159»","Иванова","Д.","В.",10,18,95,null,"Валишина Дина Шамилевна"," МБОУ «Лицей №159» "]
[78,"Приволжский","МБОУ «Татаро-английская гимназия №16»","Мисбахов","Н.","И.",10,18,95,null,"Галиуллина Динара Айдаровна","МБОУ «Татаро-английская гимназия №16» "]
[79,"Ново-Савиновский","МБОУ «Средняя общеобразовательная школа №170 с углублённым изучением отдельных предметов»","Баширова","А.","Р.",10,17,95,null,"Аглямова Алиса Габдрашитовна","МБОУ «Средняя общеобразовательная школа №170 с углублённым изучением отдельных предметов» "]
[80,"Вахитовский","Общеобразовательная школа-интернат «Лицей имени Н. И. Лобачевского» К(П)ФУ","Ткачева","М.","В.",10,17,95,null,"Билалова Дина Султановна","Общеобразовательная школа-интернат «Лицей имени Н. И. Лобачевского» К(П)ФУ "]
[81,"Ново-Савиновский","МБОУ «Средняя общеобразовательная татарско-русская школа №23 с углубленным изучением отдельных предметов»","Выборнов","Д.","Р.",10,16,95,null,"Мустафина Айгуль Фагимовна","МБОУ «Средняя общеобразовательная татарско-русская школа №23 с углубленным изучением отдельных предметов» "]
[82,"Ново-Савиновский","МБОУ «Гимназия №13 с татарским языком обучения»","Казымов","О.","А. о.",10,16,95,null,"Низамова Лилия Габделхалимовна"," МБОУ «Гимназия №13 с татарским языком обучения» "]
[83,"Вахитовский","МБОУ «Гимназия №96»","Михеева","Е.","Я.",10,16,95,null,"Гиниатуллина Венера Ильдаровна","   МБОУ Гимназия №96"]
[84,"Советский","Муниципальное автономное общеобразовательное учреждение «Лицей – инженерный центр»","Аитов","А.","Б.",10,15,95,null,"Ковенко Дмитрий Дмитриевич"," Муниципальное автономное общеобразовательное учреждение «Лицей – инженерный центр» "]
[85,"Кировский","МБОУ «Средняя общеобразовательная школа №153»","Левицкая","Т.","И.",10,15,95,null,"Никитина Татьяна Васильевна","МБОУ «Средняя общеобразовательная школа №153» "]
[86,"Вахитовский","Общеобразовательная школа-интернат «Лицей имени Н. И. Лобачевского» К(П)ФУ","Насыбуллина","А.","Р.",10,15,95,null,"Билалова Дина Султановна","Общеобразовательная школа-интернат «Лицей имени Н. И. Лобачевского» К(П)ФУ "]
[87,"Вахитовский","МАОУ «Лицей №131»","Пирогов","А.","Э.",10,15,95,null,"Крылова Марина Сергеевна","        МАОУ «Лицей №131» "]
[88,"Кировский","МБОУ «Средняя русско-татарская общеобразовательная школа №57»","Напойкина","А.","В.",10,14,95,null,"Варфоломеева Зоя Владимировна","МБОУ «Средняя русско-татарская общеобразовательная школа №57» "]
[89,"Вахитовский","МАОУ «Средняя общеобразовательная школа №39 с углубленным изучением английского языка»","Уткина","Т.","С.",10,14,95,null,"Урунова Анна Валерьевна","МАОУ «Средняя общеобразовательная школа №39 с углубленным изучением английского языка» "]
[90,"Приволжский","МБОУ «Гимназия №6»","Цветкова","Е.","С.",10,14,95,null,"Гимадеева Чулпан Нуретдиновна","МБОУ «Гимназия №6» "]
[91,"Ново-Савиновский","МБОУ «Гимназия №155 с татарским языком обучения»","Юнусов","Р. ","Р.",10,14,95,null,"Нигматуллина Нурия Фаруковна","  МБОУ «Гимназия №155 с татарским языком обучения» "]
[92,"Ново-Савиновский","Муниципальное бюджетное общеобразовательное учреждение «Средняя общеобразовательная татарско-русская школа №113 с углублённым изучением отдельных предметов»","Журова   ","В.  ","И.",10,13,95,null,"Мухаметзянов Ильяс Мулланурович","Муниципальное бюджетное общеобразовательное учреждение «Средняя общеобразовательная татарско-русская школа №113 с углублённым изучением отдельных предметов» "]
[93,"Советский","Муниципальное автономное общеобразовательное учреждение «Лицей – инженерный центр»","Зайнуллина ","Ф.","И.",10,13,95,null,"Ковенко Дмитрий Дмитриевич","  Муниципальное автономное общеобразовательное учреждение «Лицей – инженерный центр» "]
[94,"Советский","МБОУ «Средняя общеобразовательная школа №175»","Коржуев  ","Д.","П.",10,13,95,null,"Хафизова Эльвира Закирзяновна","МБОУ «Средняя общеобразовательная школа №175» "]
[95,"Советский","МБОУ «Средняя общеобразовательная школа №175»","Мулюков  "," Э.","М.",10,13,95,null,"Хафизова Эльвира Закирзяновна","МБОУ «Средняя общеобразовательная школа №175» "]
[96,"Вахитовский","МАОУ «Лицей №131»","Нугайбиков","Э.","Р.",10,13,95,null,"Коган Дина Ильдусовна","            МАОУ «Лицей №131» "]
[97,"Ново-Савиновский","Муниципальное бюджетное общеобразовательное учреждение «Средняя общеобразовательная татарско-русская школа №113 с углублённым изучением отдельных предметов»","Салаева ","А.","М.",10,13,{"$f":"10+20+30+20+15","v":95},null,"Мухаметзянов Ильяс Мулланурович","Муниципальное бюджетное общеобразовательное учреждение «Средняя общеобразовательная татарско-русская школа №113 с углублённым изучением отдельных предметов» "]
[98,"Авиастроительный","МБОУ «Средняя общеобразовательная школа №33 с углубленным изучением отдельных предметов»","Бикмухаметова","А. ","М.",10,12,95,null,"Нуруллина Эльмира Рафиковна","МБОУ «Средняя общеобразовательная школа №33 с углубленным изучением отдельных предметов» "]
[99,"Вахитовский","МАОУ «Средняя общеобразовательная школа №39 с углубленным изучением английского языка»","Козин","Д.","Г.",10,12,95,null,"Урунова Анна Валерьевна","МАОУ «Средняя общеобразовательная школа №39 с углубленным изучением английского языка» "]
[100,"Московский","Муниципальное бюджетное общеобразовательное учреждение «Средняя общеобразовательная школа №20»","Ли","А.","С.",10,12,95,null,"Салимова Зайтуна Муфараковна","     Муниципальное бюджетное общеобразовательное учреждение «Средняя общеобразовательная школа №20» "]
[101,"Вахитовский","МАОУ «Средняя общеобразовательная школа №39 с углубленным изучением английского языка»","Файзуллина ","Д.","О.",10,12,95,null,"Урунова Анна Валерьевна","МАОУ «Средняя общеобразовательная школа №39 с углубленным изучением английского языка» "]
[102,"Советский","МБОУ «Гимназия №126»","Чиж","Е.","В.",10,12,95,null,"Гилязова Гульфия Габдулхаевна","МБОУ «Гимназия №126» "]
[103,"Вахитовский","МАОУ «Средняя общеобразовательная школа №39 с углубленным изучением английского языка»","Шамсутдинов","А.","С.",10,12,95,null,"Урунова Анна Валерьевна","МАОУ «Средняя общеобразовательная школа №39 с углубленным изучением английского языка» "]
[104,"Советский","МБОУ «Средняя общеобразовательная школа №171 с углубленным изучением отдельных предметов»","Флегонтов","И.","И.",10,11,95,null,"Владимирова Ильсияр Аглямовна","МБОУ «Средняя общеобразовательная школа №171 с углубленным изучением отдельных предметов» "]
[105,"Приволжский","МБОУ «Гимназия №6»","Яхваров","М.","Д.",10,11,95,null,"Гимадеева Чулпан Нуретдиновна","МБОУ «Гимназия №6» "]
[106,"Авиастроительный","МБОУ «Средняя общеобразовательная школа №33 с углубленным изучением отдельных предметов»","Паршина","А.","Ю.",10,10,95,null,"Нуруллина Эльмира Рафиковна","МБОУ «Средняя общеобразовательная школа №33 с углубленным изучением отдельных предметов» "]
[107,"Авиастроительный","МБОУ «Средняя общеобразовательная школа №33 с углубленным изучением отдельных предметов»","Тютикова","Л.","М.",10,10,95,null,"Нуруллина Эльмира Рафиковна","МБОУ «Средняя общеобразовательная школа №33 с углубленным изучением отдельных предметов» "]
[108,"Кировский","МБОУ «СОШ №137»","Черенкова","Е.","Д.",10,10,95,null,"Клековкина Любовь Анатольевна"," МБОУ «СОШ №137» "]
[109,"Вахитовский","МАОУ «Лицей №131»","Гайнутдинов","Р.","И.",10,9,95,null,"Крылова Марина Сергеевна","               МАОУ «Лицей №131» "]
[110,"Авиастроительный","МБОУ «Средняя общеобразовательная школа №33 с углубленным изучением отдельных предметов»","Щинов","Н.","А.",10,9,95,null,"Нуруллина Эльмира Рафиковна","  МБОУ «Средняя общеобразовательная школа №33 с углубленным изучением отдельных предметов» "]
[111,"Вахитовский","МАОУ «Средняя общеобразовательная школа №39 с углубленным изучением английского языка»","Абрамов","А.","О.",10,8,95,null,"Урунова Анна Валерьевна","МАОУ «Средняя общеобразовательная школа №39 с углубленным изучением английского языка» "]
[112,"Советский","МБОУ «Гимназия №126»","Борганов","И.","А.",10,8,95,null,"Гилязова Гульфия Габдулхаевна","МБОУ «Гимназия №126» "]
[113,"Ново-Савиновский","Муниципальное бюджетное общеобразовательное учреждение «Лицей № 177»","Зарипова","Э.","Д.",10,7,95,null,"Сагдетдинова Гульназ Ревалевна","                                    Муниципальное бюджетное общеобразовательное учреждение «Лицей № 177» "]
[114,"Приволжский","МБОУ «Татаро-английская гимназия №16»","Зайдова ","З.","И.",10,6,95,null,"Галиуллина Дина Айдаровна","МБОУ «Татаро-английская гимназия №16» "]
[115,"Вахитовский","МАОУ «Средняя общеобразовательная школа №39 с углубленным изучением английского языка»","Быстрых","М.","А.",10,4,95,null,"Урунова Анна Валерьевна","МАОУ «Средняя общеобразовательная школа №39 с углубленным изучением английского языка» "]
[116,"Вахитовский","МАОУ «Лицей №131»","Зарипова","А.","Г.",10,0,95,null,"Коган Дина Ильдусовна","          МАОУ «Лицей №131» "]
[117,"Вахитовский","ФГКОУ «Казанское суворовское военное училище  МО РФ»","Гавриленко","Р.","С.",9,63,89,"Победитель","Романова Оксана Александровна","   ФГКОУ Казанское суворовское военное училище МО РФ"]
[118,"Вахитовский","МАОУ «Лицей №131»","Гарифуллов","Т.","Г.",9,57,89,"Призер","Коган Дина Ильдусовна","          МАОУ «Лицей №131» "]
[119,"Вахитовский","Муниципальное автономное общеобразовательное учреждение для детей, проявивших выдающиеся способности «Средняя общеобразовательная школа-интернат «Специализированный олимпиадно-научный центр «СОлНЦе»","Тимуца","А.","В.",9,57,89,"Призер","Гиниятуллин Рамиль Мавлютович","Муниципальное автономное общеобразовательное учреждение для детей, проявивших выдающиеся способности «Средняя общеобразовательная школа-интернат «Специализированный олимпиадно-научный центр «СОлНЦе» "]
[120,"Приволжский","Лицей-интернат «IТ-лицей К(П)ФУ»","Бакшаева ","К.","Д.",9,52,89,"Призер","Шамсутдинов Динар Загитович","             Лицей-интернат «IТ-лицей К(П)ФУ» "]
[121,"Вахитовский","МАОУ «Лицей №131»","Ибрагимов","А.","И.",9,51,89,"Призер","Коган Дина Ильдусовна","       МАОУ «Лицей №131» "]
[122,"Авиастроительный","МБОУ «Средняя общеобразовательная школа №33 с углубленным изучением отдельных предметов»","Егоров","Б.","О.",9,50,89,"Призер","Нуруллина Эльмира Рафиковна","МБОУ «Средняя общеобразовательная школа №33 с углубленным изучением отдельных предметов» "]
[123,"Приволжский","МАОУ «Гимназия №19»","Кириллов","Г.","А.",9,50,89,"Призер","Акманова Пелагея Ивановна","  МАОУ «Гимназия №19» "]
[124,"Приволжский","Лицей-интернат «IТ-лицей К(П)ФУ»","Михайлов","С.","Ю.",9,49,89,"Призер","Шамсутдинов Динар Загитович","   Лицей-интернат «IТ-лицей К(П)ФУ» "]
[125,"Вахитовский","Общеобразовательная школа-интернат «Лицей имени Н. И. Лобачевского» К(П)ФУ","Валеев ","Т. ","А.",9,48,89,"Призер","Билалова Дина Султановна","Общеобразовательная школа-интернат «Лицей имени Н. И. Лобачевского» К(П)ФУ "]
[126,"Вахитовский","Муниципальное бюджетное общеобразовательное учреждение «Гимназия №27 с татарским языком обучения»","Гасанов ","Э. ","К. о.",9,41,89,null,"Надиманова Зульфия Мансуровна","Муниципальное бюджетное общеобразовательное учреждение «Гимназия №27 с татарским языком обучения» "]
[127,"Ново-Савиновский","МБОУ «Гимназия №155 с татарским языком обучения»","Кремлев","П.","Е.",9,41,89,null,"Нигматуллина Нурия Фаруковна","  МБОУ «Гимназия №155 с татарским языком обучения» "]
[128,"Приволжский","Лицей-интернат «IТ-лицей К(П)ФУ»","Павлов","К.","В.",9,38,89,null,"Авзалова Айгуль Ильдаровна","   Лицей-интернат «IТ-лицей К(П)ФУ» "]
[129,"Ново-Савиновский","МБОУ «Гимназия №155 с татарским языком обучения»","Галимзянова ","Р.","А.",9,37,89,null,"Нигматуллина Нурия Фаруковна","  МБОУ «Гимназия №155 с татарским языком обучения» "]
[130,"Кировский","МБОУ «Средняя русско-татарская общеобразовательная школа №57»","Николаева","С.","С.",9,37,89,null,"Варфоломеева Зоя Владимировна"," МБОУ «Средняя русско-татарская общеобразовательная школа №57» "]
[131,"Приволжский","МАОУ «Гимназия №19»","Хазиев","С.","И.",9,36,89,null,"Акманова Пелагея Ивановна","  МАОУ «Гимназия №19» "]
[132,"Московский","Муниципальное бюджетное общеобразовательное учреждение «Средняя общеобразовательная школа №20»","Фаизова","А.","И.",9,35,89,null,"Салимова Зайтуна Муфараковна","   Муниципальное бюджетное общеобразовательное учреждение «Средняя общеобразовательная школа №20» "]
[133,"Вахитовский","МАОУ «Лицей №131»","Пейсахов","И.","И.",9,33,89,null,"Коган Дина Ильдусовна","          МАОУ «Лицей №131» "]
[134,"Вахитовский","МАОУ «Средняя общеобразовательная школа №18 с углубленным изучением английского языка»","Ерофеев","Е.","В.",9,33,89,null,"Бухарина И.В","МАОУ «Средняя общеобразовательная школа №18 с углубленным изучением английского языка» "]
[135,"Вахитовский","МАОУ «Лицей №131»","Исхаков","К.","А.",9,32,89,null,"Рамазанова Гузалия Джавдатовна","           МАОУ «Лицей №131» "]
[136,"Советский","МБОУ «Гимназия №90»","Фролова","А.","С.",9,31,89,null,"Бердникова Лилия Галимджановна","МБОУ «Гимназия №90» "]
[137,"Ново-Савиновский","МБОУ «Средняя общеобразовательная татарско-русская школа №23 с углубленным изучением отдельных предметов»","Домолазова","С.","А.",9,30,89,null,"Насретдинов Азат Гикрамович","МБОУ «Средняя общеобразовательная татарско-русская школа №23 с углубленным изучением отдельных предметов» "]
[138,"Вахитовский","Общеобразовательная школа-интернат «Лицей имени Н. И. Лобачевского» К(П)ФУ","Зейнетдинова","А.","Р.",9,30,89,null,"Билалова Дина Султановна","Общеобразовательная школа-интернат «Лицей имени Н. И. Лобачевского» К(П)ФУ "]
[139,"Авиастроительный","МБОУ «Средняя общеобразовательная школа №33 с углубленным изучением отдельных предметов»","Сайфуллин","А.","И.",9,30,89,null,"Нуруллина Эльмира Рафиковна","МБОУ «Средняя общеобразовательная школа №33 с углубленным изучением отдельных предметов» "]
[140,"Приволжский","МАОУ «Гимназия №19»","Мингазова","Д.","И.",9,29,89,null,"Акманова Пелагея Ивановна","  МАОУ «Гимназия №19» "]
[141,"Приволжский","МАОУ «Гимназия №19»","Баринов","Б.","С.",9,28,89,null,"Коган Дина Ильдусовна","МАОУ «Гимназия №19» "]
[142,"Вахитовский","Общеобразовательная школа-интернат «Лицей имени Н. И. Лобачевского» К(П)ФУ","Кутьин","И.","А.",9,28,89,null,"Билалова Дина Султановна"," Общеобразовательная школа-интернат «Лицей имени Н. И. Лобачевского» К(П)ФУ "]
[143,"Кировский","МБОУ «Средняя русско-татарская общеобразовательная школа №57»","Галиуллин","Б.","Н.",9,26,89,null,"Варфоломеева Зоя Владимировна","  МБОУ «Средняя русско-татарская общеобразовательная школа №57» "]
[144,"Кировский","МБОУ «Средняя русско-татарская общеобразовательная школа №57»","Голух","Д.","А.",9,25,89,null,"Киляшова Кристина Алексеевна","МБОУ «Средняя русско-татарская общеобразовательная школа №57» "]
[145,"Кировский","МБОУ «Средняя общеобразовательная школа №153»","Кадырова","М.","Ю.",9,25,89,null,"Никитина Татьяна Васильевна","МБОУ «Средняя общеобразовательная школа №153» "]
[146,"Ново-Савиновский","МБОУ «Средняя общеобразовательная школа № 9 с углубленным изучением английского языка»","Фаттахов","О.","Э.",9,25,89,null,"Валеева Анна Борисовна","МБОУ «Средняя общеобразовательная школа № 9 с углубленным изучением английского языка» "]
[147,"Советский","МБОУ «Средняя общеобразовательная школа №175»","Бирюкова ","Ю."," В.",9,23,89,null,"Саляхутдинова Гульназ Шамилевна","МБОУ «Средняя общеобразовательная школа №175» "]
[148,"Авиастроительный","МБОУ «Средняя общеобразовательная школа №33 с углубленным изучением отдельных предметов»","Гайфутдинов","М.","М.",9,23,89,null,"Нуруллина Эльмира Рафиковна","МБОУ «Средняя общеобразовательная школа №33 с углубленным изучением отдельных предметов» "]
[149,"Авиастроительный","МБОУ «Средняя общеобразовательная школа №62 с углубленным изучением отдельных предметов»","Случаев","К.","К.",9,23,89,null,"Иванкова Ольга Алексеевна","МБОУ «Средняя общеобразовательная школа №62 с углубленным изучением отдельных предметов» "]
[150,"Кировский","МБОУ «СОШ №137»","Цивильский ","М.","А.",9,23,89,null,"Клековкина Любовь Анатольевна","МБОУ «СОШ №137» "]
[151,"Советский","МБОУ «Гимназия №90»","Закирова","А.","Б.",9,22,89,null,"Обухова Татьяна Алексеевна","МБОУ «Гимназия №90» "]
[152,"Вахитовский","Общеобразовательная школа-интернат «Лицей имени Н. И. Лобачевского» К(П)ФУ","Гинсбург","С.","В.",9,20,89,null,"Билалова Дина Султановна","Общеобразовательная школа-интернат «Лицей имени Н. И. Лобачевского» К(П)ФУ "]
[153,"Кировский","МБОУ «Средняя общеобразовательная школа №153»","Назарова","А.","П.",9,20,89,null,"Никитина Татьяна Васильевна","МБОУ «Средняя общеобразовательная школа №153» "]
[154,"Авиастроительный","МБОУ «Средняя общеобразовательная школа №33 с углубленным изучением отдельных предметов»","Хидиятуллина","Д.","Ф.",9,20,89,null,"Нуруллина Эльмира Рафиковна"," МБОУ «Средняя общеобразовательная школа №33 с углубленным изучением отдельных предметов» "]
[155,"Советский","МБОУ «Средняя общеобразовательная школа №144 с углубленным изучением отдельных предметов»","Тюник","В. ","С.",9,18,89,null,"Шарапов Алмаз Ринатович","МБОУ «Средняя общеобразовательная школа №144 с углубленным изучением отдельных предметов» "]
[156,"Приволжский","МБОУ «Татаро-английская гимназия №16»","Шакирова ","С.","А.",9,16,89,null,"Галиуллина Динара Айдаровна","МБОУ «Татаро-английская гимназия №16» "]
[157,"Кировский","МБОУ «Средняя общеобразовательная школа №70 с углубленным изучением отдельных предметов»","Зиновьев","А.","В.",9,15,89,null,"Саматова Зульфия Шамильевна","          МБОУ «Средняя общеобразовательная школа №70 с углубленным изучением отдельных предметов» "]
[158,"Приволжский","МБОУ «Гимназия №6»","Майорова","Д.","А.",9,14,89,null,"Загулов Андрей Владимирович","МБОУ «Гимназия №6» "]
[159,"Приволжский","МБОУ «Татаро-английская гимназия №16»","Боговиева","Л.","Р.",9,13,89,null,"Галиуллина Динара Айдаровна","МБОУ «Татаро-английская гимназия №16» "]
[160,"Приволжский","МБОУ «Средняя общеобразовательная школа №24 с углубленным изучением отдельных предметов»","Тазеева","А.","М.",9,13,89,null,"Старшинова Виктория Александровна"," МБОУ «Средняя общеобразовательная школа №24 с углубленным изучением отдельных предметов» "]
[161,"Советский","МБОУ «Многопрофильная школа №181»","Терентьева","В.","Е.",9,13,89,null,"Загидуллина Лилия Асфандияровна","МБОУ «Многопрофильная школа №181» "]
[162,"Советский","МБОУ «Средняя общеобразовательная школа №171 с углубленным изучением отдельных предметов»","Хабибуллина","Р.","А.",9,10,89,null,"Хуснутдинова Гульнур Гумаровна","МБОУ «Средняя общеобразовательная школа №171 с углубленным изучением отдельных предметов» "]
[163,"Советский","МАОУ «Средняя общеобразовательная школа №141 с углубленным изучением отдельных предметов»","Насибуллина","Г.","З.",9,9,89,null,"Гармашова Юлия Николаевна","МАОУ «Средняя общеобразовательная школа №141 с углубленным изучением отдельных предметов» "]
[164,"Вахитовский","МАОУ «Средняя общеобразовательная школа №18 с углубленным изучением английского языка»","Назаров","М.","А.",9,3,89,null,"Бухарина И.В","МАОУ «Средняя общеобразовательная школа №18 с углубленным изучением английского языка» "]
[165,"Ново-Савиновский","МБОУ «Средняя общеобразовательная татарско-русская школа №23 с углубленным изучением отдельных предметов»","Кононова","Ю.","А.",8,51,100,"Победитель","Мустафина Айгуль Фагимовна","МБОУ «Средняя общеобразовательная татарско-русская школа №23 с углубленным изучением отдельных предметов» "]
[166,"Вахитовский","Общеобразовательная школа-интернат «Лицей имени Н. И. Лобачевского» К(П)ФУ","Билалов ","Э.","Ф.",8,28,100,null,"Парышева Евгения Анатольевна","Общеобразовательная школа-интернат «Лицей имени Н. И. Лобачевского» К(П)ФУ "]
[167,"Приволжский","МБОУ «Татаро-английская гимназия №16»","Шириева ","Д.","А.",8,21,100,null,"Галиуллина Динара Айдаровна","МБОУ «Татаро-английская гимназия №16» "]
[168,"Приволжский","Лицей-интернат «IТ-лицей К(П)ФУ»","Сысоева","А.","А.",8,17,100,null,"Шамсутдинов Динар Загитович","         Лицей-интернат «IТ-лицей К(П)ФУ» "]
[169,"Вахитовский","Общеобразовательная школа-интернат «Лицей имени Н. И. Лобачевского» К(П)ФУ","Саитов","Д.","Р.",8,14,100,null,"Билалова Дина Султановна","  Общеобразовательная школа-интернат «Лицей имени Н. И. Лобачевского» К(П)ФУ "]
[170,"Приволжский","МБОУ «Гимназия №6»","Королевский","Г.","С.",8,13,100,null,"Зелепукина Людмила Георгиевна"," МБОУ «Гимназия №6» "]
[171,"Московский","МАОУ «Лицей-интернат №2» Московского района","Суров","А.","С.",8,13,100,null,"Исмаилов Рашид Ильдарович","  МАОУ «Лицей-интернат №2» Московского района "]
[172,"Советский","Муниципальное автономное общеобразовательное учреждение «Лицей – инженерный центр»","Кремень","А.","Н.",8,11,100,null,"Валеева Линара Рафисовна"," Муниципальное автономное общеобразовательное учреждение «Лицей – инженерный центр» "]
[173,"Приволжский","Лицей-интернат «IТ-лицей К(П)ФУ»","Галимов","А.","К.",8,10,100,null,"Белякова Ксения Сергеевна","   Лицей-интернат «IТ-лицей К(П)ФУ» "]
[174,"Приволжский","МБОУ «Гимназия №6»","Андреев","И.","Д.",8,9,{"$f":"5+10+10+15+13+16+18+13","v":100},null,"Гимадеева Чулпан Нуретдиновна","МБОУ «Гимназия №6» "]
[175,"Советский","Муниципальное автономное общеобразовательное учреждение «Лицей – инженерный центр»","Мухаматдинов","Т.","Р.",8,8,100,null,"Валеева Линара Рафисовна","Муниципальное автономное общеобразовательное учреждение «Лицей – инженерный центр» "]
[176,"Кировский","МБОУ «Средняя общеобразовательная школа №153»","Ханьжин","Е.","Д.",8,8,100,null,"Никитина Татьяна Васильевна","МБОУ «Средняя общеобразовательная школа №153» "]
[177,"Приволжский","Лицей-интернат «IТ-лицей К(П)ФУ»","Шубин","М.","Р.",8,7,100,null,"Белякова Ксения Сергеевна","  Лицей-интернат «IТ-лицей К(П)ФУ» "]
[178,"Ново-Савиновский","МБОУ «Средняя общеобразовательная татарско-русская школа №23 с углубленным изучением отдельных предметов»","Исачкина","Д.","Д.",8,7,100,null,"Мустафина Айгуль Фагимовна","МБОУ «Средняя общеобразовательная татарско-русская школа №23 с углубленным изучением отдельных предметов» "]
[179,"Кировский","МБОУ «Средняя общеобразовательная школа №153»","Рубцов","Д.","С.",8,7,100,null,"Никитина Татьяна Васильевна","МБОУ «Средняя общеобразовательная школа №153» "]
[180,"Ново-Савиновский","МБОУ «Средняя общеобразовательная татарско-русская школа №23 с углубленным изучением отдельных предметов»","Литвиненко","Ю.","О.",8,6,100,null,"Насретдинов Азат Гикрамович","МБОУ «Средняя общеобразовательная татарско-русская школа №23 с углубленным изучением отдельных предметов» "]
[181,"Вахитовский","Муниципальное бюджетное общеобразовательное учреждение «Гимназия №27 с татарским языком обучения»","Приходько ","Э. ","В.",8,6,100,null,"Батреев Ильдус Фирдусович"," Муниципальное бюджетное общеобразовательное учреждение «Гимназия №27 с татарским языком обучения» "]
[182,"Советский","Муниципальное автономное общеобразовательное учреждение «Лицей – инженерный центр»","Камалетдинов","Р.","Э.",8,5,100,null,"Валеева Линара Рафисовна","Муниципальное автономное общеобразовательное учреждение «Лицей – инженерный центр» "]
[183,"Советский","Муниципальное автономное общеобразовательное учреждение «Лицей – инженерный центр»","Чирков ","С.","Е.",8,5,100,null,"Валеева Линара Рафисовна","Муниципальное автономное общеобразовательное учреждение «Лицей – инженерный центр» "]
[184,"Приволжский","МБОУ «Гимназия №6»","Трофимов","А. ","А.",8,4,100,null,"Квитко Мария Владимировна","МБОУ «Гимназия №6» "]
[185,"Приволжский","МАОУ «Гимназия №139»","Хасаншин","Ф.","Р.",8,4,100,null,"Савосина Юлия Анатольевна","МАОУ «Гимназия №139» "]
[186,"Приволжский","МБОУ «Татаро-английская гимназия №16»","Филиппова","Б.","М.",8,3,100,null,"Галиуллина Динара Айдаровна","МБОУ «Татаро-английская гимназия №16» "]
[187,"Приволжский","МАОУ «Гимназия №139»","Хайруллин","А.","А.",8,0,100,null,"Блохина Лилия Надировна"," МАОУ «Гимназия №139» "]

{"sheet":"8 кл","index":1,"n_rows":27,"n_cols":12,"rows_kept":27}
[]
["Предварительный протокол по итогам муниципального этапа ВсОШ/РОШ  по предмету ЭКОНОМИКА в 2018-2019 учебном году г. Казани       "]
[]
["№ п/п","Муниципалитет","Полное наименование образовательного учреждения (по уставу)","Фамилия","Имя","Отчество","Класс","Итоговый балл","Максимальный балл","Статус","Фамилия, имя, отчество педагога, подготовившего участника олимпиады","Полное наименование образовательного учреждения (по уставу)"]
[1,"Ново-Савиновский","МБОУ «Средняя общеобразовательная татарско-русская школа №23 с углубленным изучением отдельных предметов»","Кононова","Ю.","А.",8,51,100,"Победитель","Мустафина Айгуль Фагимовна","МБОУ «Средняя общеобразовательная татарско-русская школа №23 с углубленным изучением отдельных предметов» "]
[2,"Вахитовский","Общеобразовательная школа-интернат «Лицей имени Н. И. Лобачевского» К(П)ФУ","Билалов ","Э.","Ф.",8,28,100,null,"Парышева Евгения Анатольевна","Общеобразовательная школа-интернат «Лицей имени Н. И. Лобачевского» К(П)ФУ "]
[3,"Приволжский","МБОУ «Татаро-английская гимназия №16»","Шириева ","Д.","А.",8,21,100,null,"Галиуллина Динара Айдаровна","МБОУ «Татаро-английская гимназия №16» "]
[4,"Приволжский","Лицей-интернат «IТ-лицей К(П)ФУ»","Сысоева","А.","А.",8,17,100,null,"Шамсутдинов Динар Загитович","         Лицей-интернат «IТ-лицей К(П)ФУ» "]
[5,"Вахитовский","Общеобразовательная школа-интернат «Лицей имени Н. И. Лобачевского» К(П)ФУ","Саитов","Д.","Р.",8,14,100,null,"Билалова Дина Султановна","  Общеобразовательная школа-интернат «Лицей имени Н. И. Лобачевского» К(П)ФУ "]
[6,"Приволжский","МБОУ «Гимназия №6»","Королевский","Г.","С.",8,13,100,null,"Зелепукина Людмила Георгиевна"," МБОУ «Гимназия №6» "]
[7,"Московский","МАОУ «Лицей-интернат №2» Московского района","Суров","А.","С.",8,13,100,null,"Исмаилов Рашид Ильдарович","  МАОУ «Лицей-интернат №2» Московского района "]
[8,"Советский","Муниципальное автономное общеобразовательное учреждение «Лицей – инженерный центр»","Кремень","А.","Н.",8,11,100,null,"Валеева Линара Рафисовна"," Муниципальное автономное общеобразовательное учреждение «Лицей – инженерный центр» "]
[9,"Приволжский","Лицей-интернат «IТ-лицей К(П)ФУ»","Галимов","А.","К.",8,10,100,null,"Белякова Ксения Сергеевна","   Лицей-интернат «IТ-лицей К(П)ФУ» "]
[10,"Приволжский","МБОУ «Гимназия №6»","Андреев","И.","Д.",8,9,{"$f":"5+10+10+15+13+16+18+13","v":100},null,"Гимадеева Чулпан Нуретдиновна","МБОУ «Гимназия №6» "]
[11,"Советский","Муниципальное автономное общеобразовательное учреждение «Лицей – инженерный центр»","Мухаматдинов","Т.","Р.",8,8,100,null,"Валеева Линара Рафисовна","Муниципальное автономное общеобразовательное учреждение «Лицей – инженерный центр» "]
[12,"Кировский","МБОУ «Средняя общеобразовательная школа №153»","Ханьжин","Е.","Д.",8,8,100,null,"Никитина Татьяна Васильевна","МБОУ «Средняя общеобразовательная школа №153» "]
[13,"Приволжский","Лицей-интернат «IТ-лицей К(П)ФУ»","Шубин","М.","Р.",8,7,100,null,"Белякова Ксения Сергеевна","  Лицей-интернат «IТ-лицей К(П)ФУ» "]
[14,"Ново-Савиновский","МБОУ «Средняя общеобразовательная татарско-русская школа №23 с углубленным изучением отдельных предметов»","Исачкина","Д.","Д.",8,7,100,null,"Мустафина Айгуль Фагимовна","МБОУ «Средняя общеобразовательная татарско-русская школа №23 с углубленным изучением отдельных предметов» "]
[15,"Кировский","МБОУ «Средняя общеобразовательная школа №153»","Рубцов","Д.","С.",8,7,100,null,"Никитина Татьяна Васильевна","МБОУ «Средняя общеобразовательная школа №153» "]
[16,"Ново-Савиновский","МБОУ «Средняя общеобразовательная татарско-русская школа №23 с углубленным изучением отдельных предметов»","Литвиненко","Ю.","О.",8,6,100,null,"Насретдинов Азат Гикрамович","МБОУ «Средняя общеобразовательная татарско-русская школа №23 с углубленным изучением отдельных предметов» "]
[17,"Вахитовский","Муниципальное бюджетное общеобразовательное учреждение «Гимназия №27 с татарским языком обучения»","Приходько ","Э. ","В.",8,6,100,null,"Батреев Ильдус Фирдусович"," Муниципальное бюджетное общеобразовательное учреждение «Гимназия №27 с татарским языком обучения» "]
[18,"Советский","Муниципальное автономное общеобразовательное учреждение «Лицей – инженерный центр»","Камалетдинов","Р.","Э.",8,5,100,null,"Валеева Линара Рафисовна","Муниципальное автономное общеобразовательное учреждение «Лицей – инженерный центр» "]
[19,"Советский","Муниципальное автономное общеобразовательное учреждение «Лицей – инженерный центр»","Чирков ","С.","Е.",8,5,100,null,"Валеева Линара Рафисовна","Муниципальное автономное общеобразовательное учреждение «Лицей – инженерный центр» "]
[20,"Приволжский","МБОУ «Гимназия №6»","Трофимов","А. ","А.",8,4,100,null,"Квитко Мария Владимировна","МБОУ «Гимназия №6» "]
[21,"Приволжский","МАОУ «Гимназия №139»","Хасаншин","Ф.","Р.",8,4,100,null,"Савосина Юлия Анатольевна","МАОУ «Гимназия №139» "]
[22,"Приволжский","МБОУ «Татаро-английская гимназия №16»","Филиппова","Б.","М.",8,3,100,null,"Галиуллина Динара Айдаровна","МБОУ «Татаро-английская гимназия №16» "]
[23,"Приволжский","МАОУ «Гимназия №139»","Хайруллин","А.","А.",8,0,100,null,"Блохина Лилия Надировна"," МАОУ «Гимназия №139» "]

{"sheet":"9-11 кл","index":2,"n_rows":168,"n_cols":12,"rows_kept":168}
[]
["Предварительный протокол по итогам муниципального этапа ВсОШ/РОШ  по предмету ЭКОНОМИКА в 2018-2019 учебном году г. Казани       "]
[]
["№ п/п","Муниципалитет","Полное наименование образовательного учреждения (по уставу)","Фамилия","Имя","Отчество","Класс","Итоговый балл","Максимальный балл","Статус","Фамилия, имя, отчество педагога, подготовившего участника олимпиады","Полное наименование образовательного учреждения (по уставу)"]
[1,"Вахитовский","ФГКОУ «Казанское суворовское военное училище  МО РФ»","Гавриленко","Р.","С.",9,63,89,"Победитель","Романова Оксана Александровна","   ФГКОУ Казанское суворовское военное училище МО РФ"]
[2,"Вахитовский","МАОУ «Лицей №131»","Гарифуллов","Т.","Г.",9,57,89,"Призер","Коган Дина Ильдусовна"," МАОУ «Лицей №131» "]
[3,"Вахитовский","Муниципальное автономное общеобразовательное учреждение для детей, проявивших выдающиеся способности «Средняя общеобразовательная школа-интернат «Специализированный олимпиадно-научный центр «СОлНЦе»","Тимуца","А.","В.",9,57,89,"Призер","Гиниятуллин Рамиль Мавлютович","Муниципальное автономное общеобразовательное учреждение для детей, проявивших выдающиеся способности «Средняя общеобразовательная школа-интернат «Специализированный олимпиадно-научный центр «СОлНЦе» "]
[4,"Приволжский","Лицей-интернат «IТ-лицей К(П)ФУ»","Бакшаева ","К.","Д.",9,52,89,"Призер","Шамсутдинов Динар Загитович","Лицей-интернат «IТ-лицей К(П)ФУ» "]
[5,"Вахитовский","МАОУ «Лицей №131»","Ибрагимов","А.","И.",9,51,89,"Призер","Коган Дина Ильдусовна","       МАОУ «Лицей №131» "]
[6,"Авиастроительный","МБОУ «Средняя общеобразовательная школа №33 с углубленным изучением отдельных предметов»","Егоров","Б.","О.",9,50,89,"Призер","Нуруллина Эльмира Рафиковна","МБОУ «Средняя общеобразовательная школа №33 с углубленным изучением отдельных предметов» "]
[7,"Приволжский","МАОУ «Гимназия №19»","Кириллов","Г.","А.",9,50,89,"Призер","Акманова Пелагея Ивановна","  МАОУ «Гимназия №19» "]
[8,"Приволжский","Лицей-интернат «IТ-лицей К(П)ФУ»","Михайлов","С.","Ю.",9,49,89,"Призер","Шамсутдинов Динар Загитович","   Лицей-интернат «IТ-лицей К(П)ФУ» "]
[9,"Вахитовский","Общеобразовательная школа-интернат «Лицей имени Н. И. Лобачевского» К(П)ФУ","Валеев ","Т. ","А.",9,48,89,"Призер","Билалова Дина Султановна","Общеобразовательная школа-интернат «Лицей имени Н. И. Лобачевского» К(П)ФУ "]
[10,"Вахитовский","Муниципальное бюджетное общеобразовательное учреждение «Гимназия №27 с татарским языком обучения»","Гасанов ","Э. ","К. о.",9,41,89,null,"Надиманова Зульфия Мансуровна","Муниципальное бюджетное общеобразовательное учреждение «Гимназия №27 с татарским языком обучения» "]
[11,"Ново-Савиновский","МБОУ «Гимназия №155 с татарским языком обучения»","Кремлев","П.","Е.",9,41,89,null,"Нигматуллина Нурия Фаруковна","  МБОУ «Гимназия №155 с татарским языком обучения» "]
[12,"Приволжский","Лицей-интернат «IТ-лицей К(П)ФУ»","Павлов","К.","В.",9,38,89,null,"Авзалова Айгуль Ильдаровна","   Лицей-интернат «IТ-лицей К(П)ФУ» "]
[13,"Ново-Савиновский","МБОУ «Гимназия №155 с татарским языком обучения»","Галимзянова ","Р.","А.",9,37,89,null,"Нигматуллина Нурия Фаруковна","  МБОУ «Гимназия №155 с татарским языком обучения» "]
[14,"Кировский","МБОУ «Средняя русско-татарская общеобразовательная школа №57»","Николаева","С.","С.",9,37,89,null,"Варфоломеева Зоя Владимировна"," МБОУ «Средняя русско-татарская общеобразовательная школа №57» "]
[15,"Приволжский","МАОУ «Гимназия №19»","Хазиев","С.","И.",9,36,89,null,"Акманова Пелагея Ивановна","  МАОУ «Гимназия №19» "]
[16,"Московский","Муниципальное бюджетное общеобразовательное учреждение «Средняя общеобразовательная школа №20»","Фаизова","А.","И.",9,35,89,null,"Салимова Зайтуна Муфараковна","   Муниципальное бюджетное общеобразовательное учреждение «Средняя общеобразовательная школа №20» "]
[17,"Вахитовский","МАОУ «Лицей №131»","Пейсахов","И.","И.",9,33,89,null,"Коган Дина Ильдусовна"," МАОУ «Лицей №131» "]
[18,"Вахитовский","МАОУ «Средняя общеобразовательная школа №18 с углубленным изучением английского языка»","Ерофеев","Е.","В.",9,33,89,null,"Бухарина И.В","МАОУ «Средняя общеобразовательная школа №18 с углубленным изучением английского языка» "]
[19,"Вахитовский","МАОУ «Лицей №131»","Исхаков","К.","А.",9,32,89,null,"Рамазанова Гузалия Джавдатовна","  МАОУ «Лицей №131» "]
[20,"Советский","МБОУ «Гимназия №90»","Фролова","А.","С.",9,31,89,null,"Бердникова Лилия Галимджановна","МБОУ «Гимназия №90» "]
[21,"Ново-Савиновский","МБОУ «Средняя общеобразовательная татарско-русская школа №23 с углубленным изучением отдельных предметов»","Домолазова","С.","А.",9,30,89,null,"Насретдинов Азат Гикрамович","МБОУ «Средняя общеобразовательная татарско-русская школа №23 с углубленным изучением отдельных предметов» "]
[22,"Вахитовский","Общеобразовательная школа-интернат «Лицей имени Н. И. Лобачевского» К(П)ФУ","Зейнетдинова","А.","Р.",9,30,89,null,"Билалова Дина Султановна","Общеобразовательная школа-интернат «Лицей имени Н. И. Лобачевского» К(П)ФУ "]
[23,"Авиастроительный","МБОУ «Средняя общеобразовательная школа №33 с углубленным изучением отдельных предметов»","Сайфуллин","А.","И.",9,30,89,null,"Нуруллина Эльмира Рафиковна","МБОУ «Средняя общеобразовательная школа №33 с углубленным изучением отдельных предметов» "]
[24,"Приволжский","МАОУ «Гимназия №19»","Мингазова","Д.","И.",9,29,89,null,"Акманова Пелагея Ивановна","  МАОУ «Гимназия №19» "]
[25,"Приволжский","МАОУ «Гимназия №19»","Баринов","Б.","С.",9,28,89,null,"Коган Дина Ильдусовна","МАОУ «Гимназия №19» "]
[26,"Вахитовский","Общеобразовательная школа-интернат «Лицей имени Н. И. Лобачевского» К(П)ФУ","Кутьин","И.","А.",9,28,89,null,"Билалова Дина Султановна"," Общеобразовательная школа-интернат «Лицей имени Н. И. Лобачевского» К(П)ФУ "]
[27,"Кировский","МБОУ «Средняя русско-татарская общеобразовательная школа №57»","Галиуллин","Б.","Н.",9,26,89,null,"Варфоломеева Зоя Владимировна","  МБОУ «Средняя русско-татарская общеобразовательная школа №57» "]
[28,"Кировский","МБОУ «Средняя русско-татарская общеобразовательная школа №57»","Голух","Д.","А.",9,25,89,null,"Киляшова Кристина Алексеевна","МБОУ «Средняя русско-татарская общеобразовательная школа №57» "]
[29,"Кировский","МБОУ «Средняя общеобразовательная школа №153»","Кадырова","М.","Ю.",9,25,89,null,"Никитина Татьяна Васильевна","МБОУ «Средняя общеобразовательная школа №153» "]
[30,"Ново-Савиновский","МБОУ «Средняя общеобразовательная школа № 9 с углубленным изучением английского языка»","Фаттахов","О.","Э.",9,25,89,null,"Валеева Анна Борисовна","МБОУ «Средняя общеобразовательная школа № 9 с углубленным изучением английского языка» "]
[31,"Советский","МБОУ «Средняя общеобразовательная школа №175»","Бирюкова ","Ю."," В.",9,23,89,null,"Саляхутдинова Гульназ Шамилевна","МБОУ «Средняя общеобразовательная школа №175» "]
[32,"Авиастроительный","МБОУ «Средняя общеобразовательная школа №33 с углубленным изучением отдельных предметов»","Гайфутдинов","М.","М.",9,23,89,null,"Нуруллина Эльмира Рафиковна","МБОУ «Средняя общеобразовательная школа №33 с углубленным изучением отдельных предметов» "]
[33,"Авиастроительный","МБОУ «Средняя общеобразовательная школа №62 с углубленным изучением отдельных предметов»","Случаев","К.","К.",9,23,89,null,"Иванкова Ольга Алексеевна","МБОУ «Средняя общеобразовательная школа №62 с углубленным изучением отдельных предметов» "]
[34,"Кировский","МБОУ «СОШ №137»","Цивильский ","М.","А.",9,23,89,null,"Клековкина Любовь Анатольевна","МБОУ «СОШ №137» "]
[35,"Советский","МБОУ «Гимназия №90»","Закирова","А.","Б.",9,22,89,null,"Обухова Татьяна Алексеевна","МБОУ «Гимназия №90» "]
[36,"Вахитовский","Общеобразовательная школа-интернат «Лицей имени Н. И. Лобачевского» К(П)ФУ","Гинсбург","С.","В.",9,20,89,null,"Билалова Дина Султановна","Общеобразовательная школа-интернат «Лицей имени Н. И. Лобачевского» К(П)ФУ "]
[37,"Кировский","МБОУ «Средняя общеобразовательная школа №153»","Назарова","А.","П.",9,20,89,null,"Никитина Татьяна Васильевна","МБОУ «Средняя общеобразовательная школа №153» "]
[38,"Авиастроительный","МБОУ «Средняя общеобразовательная школа №33 с углубленным изучением отдельных предметов»","Хидиятуллина","Д.","Ф.",9,20,89,null,"Нуруллина Эльмира Рафиковна"," МБОУ «Средняя общеобразовательная школа №33 с углубленным изучением отдельных предметов» "]
[39,"Советский","МБОУ «Средняя общеобразовательная школа №144 с углубленным изучением отдельных предметов»","Тюник","В. ","С.",9,18,89,null,"Шарапов Алмаз Ринатович","МБОУ «Средняя общеобразовательная школа №144 с углубленным изучением отдельных предметов» "]
[40,"Приволжский","МБОУ «Татаро-английская гимназия №16»","Шакирова ","С.","А.",9,16,89,null,"Галиуллина Динара Айдаровна","МБОУ «Татаро-английская гимназия №16» "]
[41,"Кировский","МБОУ «Средняя общеобразовательная школа №70 с углубленным изучением отдельных предметов»","Зиновьев","А.","В.",9,15,89,null,"Саматова Зульфия Шамильевна","          МБОУ «Средняя общеобразовательная школа №70 с углубленным изучением отдельных предметов» "]
[42,"Приволжский","МБОУ «Гимназия №6»","Майорова","Д.","А.",9,14,89,null,"Загулов Андрей Владимирович","МБОУ «Гимназия №6» "]
[43,"Приволжский","МБОУ «Татаро-английская гимназия №16»","Боговиева","Л.","Р.",9,13,89,null,"Галиуллина Динара Айдаровна","МБОУ «Татаро-английская гимназия №16» "]
[44,"Приволжский","МБОУ «Средняя общеобразовательная школа №24 с углубленным изучением отдельных предметов»","Тазеева","А.","М.",9,13,89,null,"Старшинова Виктория Александровна"," МБОУ «Средняя общеобразовательная школа №24 с углубленным изучением отдельных предметов» "]
[45,"Советский","МБОУ «Многопрофильная школа №181»","Терентьева","В.","Е.",9,13,89,null,"Загидуллина Лилия Асфандияровна","МБОУ «Многопрофильная школа №181» "]
[46,"Советский","МБОУ «Средняя общеобразовательная школа №171 с углубленным изучением отдельных предметов»","Хабибуллина","Р.","А.",9,10,89,null,"Хуснутдинова Гульнур Гумаровна","МБОУ «Средняя общеобразовательная школа №171 с углубленным изучением отдельных предметов» "]
[47,"Советский","МАОУ «Средняя общеобразовательная школа №141 с углубленным изучением отдельных предметов»","Насибуллина","Г.","З.",9,9,89,null,"Гармашова Юлия Николаевна","МАОУ «Средняя общеобразовательная школа №141 с углубленным изучением отдельных предметов» "]
[48,"Вахитовский","МАОУ «Средняя общеобразовательная школа №18 с углубленным изучением английского языка»","Назаров","М.","А.",9,3,89,null,"Бухарина И.В","МАОУ «Средняя общеобразовательная школа №18 с углубленным изучением английского языка» "]
[49,"Вахитовский","Общеобразовательная школа-интернат «Лицей имени Н. И. Лобачевского» К(П)ФУ","Курочкин","Д.","М.",10,66,{"$f":"10+20+30+20+15","v":95},"Победитель","Билалова Дина Султановна","Общеобразовательная школа-интернат «Лицей имени Н. И. Лобачевского» К(П)ФУ "]
[50,"Вахитовский","Общеобразовательная школа-интернат «Лицей имени Н. И. Лобачевского» К(П)ФУ","Хайрисламов","Т.","А.",10,58,95,"Призер","Билалова Дина Султановна","Общеобразовательная школа-интернат «Лицей имени Н. И. Лобачевского» К(П)ФУ "]
[51,"Ново-Савиновский","МАОУ «Лицей-интернат №7»","Якупов  ","К.","Л.",10,54,95,"Призер","Алексеева Лариса Владимировна","    МАОУ «Лицей-интернат №7» "]
[52,"Вахитовский","МАОУ «Лицей №131»","Новиков","С.","А.",10,50,95,"Призер","Коган Дина Ильдусовна","     МАОУ «Лицей №131» "]
[53,"Московский","МАОУ «Лицей-интернат №2» Московского района","Закиров","А.","А.",10,48,95,"Призер","Исмаилов Рашид Ильдарович"," МАОУ «Лицей-интернат №2» Московского района "]
[54,"Вахитовский","Общеобразовательная школа-интернат «Лицей имени Н. И. Лобачевского» К(П)ФУ","Кузнецов","Д.","В.",10,48,95,"Призер","Билалова Дина Султановна"," Общеобразовательная школа-интернат «Лицей имени Н. И. Лобачевского» К(П)ФУ "]
[55,"Вахитовский","Общеобразовательная школа-интернат «Лицей имени Н. И. Лобачевского» К(П)ФУ","Ахметшин","И.","И.",10,41,95,null,"Билалова Дина Султановна","Общеобразовательная школа-интернат «Лицей имени Н. И. Лобачевского» К(П)ФУ "]
[56,"Вахитовский","Общеобразовательная школа-интернат «Лицей имени Н. И. Лобачевского» К(П)ФУ","Хафизов","Д.","Р.",10,37,95,null,"Егорова Алефтина Николаевна","Общеобразовательная школа-интернат «Лицей имени Н. И. Лобачевского» К(П)ФУ "]
[57,"Вахитовский","МАОУ «Лицей №131»","Колчин","Л.","Д.",10,33,95,null,"Коган Дина Ильдусовна","   МАОУ «Лицей №131» "]
[58,"Ново-Савиновский","Инженерный лицей КНИТУ-КАИ","Михайлова","Л.","С.",10,32,95,null,"Ханбиков И Ф","  Инженерный лицей КНИТУ-КАИ "]
[59,"Ново-Савиновский","Инженерный лицей КНИТУ-КАИ","Макарушин","К.","А.",10,31,95,null,"Ханбиков И.Ф","  Инженерный лицей КНИТУ-КАИ "]
[60,"Советский","МБОУ «Гимназия №126»","Замалеева","А.","А.",10,30,95,null,"Гилязова Гульфия Габдулхаевна","МБОУ «Гимназия №126» "]
[61,"Московский","МАОУ «Лицей-интернат №2» Московского района","Мастюков","К.","Ш.",10,30,95,null,"Исмаилов Рашид Ильдарович","  МАОУ «Лицей-интернат №2» Московского района "]
[62,"Вахитовский","Общеобразовательная школа-интернат «Лицей имени Н. И. Лобачевского» К(П)ФУ","Себельзин","С.","А.",10,29,95,null,"Егорова Алефтина Николаевна","Общеобразовательная школа-интернат «Лицей имени Н. И. Лобачевского» К(П)ФУ "]
[63,"Советский","МАОУ «Средняя общеобразовательная школа №141 с углубленным изучением отдельных предметов»","Драгунов","В.","А.",10,25,95,null,"Гармашова Юлия Николаевна","МАОУ «Средняя общеобразовательная школа №141 с углубленным изучением отдельных предметов» "]
[64,"Ново-Савиновский","МАОУ «Лицей-интернат №7»","Гафиятуллин ","Р. ","Э.",10,23,95,null,"Алексеева Лариса Владимировна","     МАОУ «Лицей-интернат №7» "]
[65,"Вахитовский","МАОУ «Лицей №131»","Назарян","К.","В.",10,23,95,null,"Крылова Марина Сергеевна","        МАОУ «Лицей №131» "]
[66,"Авиастроительный","МБОУ «Средняя общеобразовательная школа №33 с углубленным изучением отдельных предметов»","Давлетшина","А.","З.",10,21,95,null,"Нуруллина Эльмира Рафиковна"," МБОУ «Средняя общеобразовательная школа №33 с углубленным изучением отдельных предметов» "]
[67,"Вахитовский","МАОУ «Лицей №131»","Зарипова","И.","М.",10,20,95,null,"Крылова Марина Сергеевна","   МАОУ «Лицей №131» "]
[68,"Вахитовский","МБОУ «Гимназия №96»","Терентьев","И.","А.",10,20,95,null,"Гиниатуллина Венера Ильдаровна","  МБОУ Гимназия №96"]
[69,"Приволжский","МАОУ «Гимназия №139»","Гайфуллина","Д.","Л.",10,19,95,null,"Полуенова Нина Васильевна","  МАОУ «Гимназия №139» "]
[70,"Приволжский","МАОУ «Гимназия №139»","Багаутдинова","А.","И.",10,18,95,null,"Полуенова Нина Васильевна","   МАОУ «Гимназия №139» "]
[71,"Советский","МБОУ «Лицей №159»","Иванова","Д.","В.",10,18,95,null,"Валишина Дина Шамилевна"," МБОУ «Лицей №159» "]
[72,"Приволжский","МБОУ «Татаро-английская гимназия №16»","Мисбахов","Н.","И.",10,18,95,null,"Галиуллина Динара Айдаровна","МБОУ «Татаро-английская гимназия №16» "]
[73,"Ново-Савиновский","МБОУ «Средняя общеобразовательная школа №170 с углублённым изучением отдельных предметов»","Баширова","А.","Р.",10,17,95,null,"Аглямова Алиса Габдрашитовна","МБОУ «Средняя общеобразовательная школа №170 с углублённым изучением отдельных предметов» "]
[74,"Вахитовский","Общеобразовательная школа-интернат «Лицей имени Н. И. Лобачевского» К(П)ФУ","Ткачева","М.","В.",10,17,95,null,"Билалова Дина Султановна","Общеобразовательная школа-интернат «Лицей имени Н. И. Лобачевского» К(П)ФУ "]
[75,"Ново-Савиновский","МБОУ «Средняя общеобразовательная татарско-русская школа №23 с углубленным изучением отдельных предметов»","Выборнов","Д.","Р.",10,16,95,null,"Мустафина Айгуль Фагимовна","МБОУ «Средняя общеобразовательная татарско-русская школа №23 с углубленным изучением отдельных предметов» "]
[76,"Ново-Савиновский","МБОУ «Гимназия №13 с татарским языком обучения»","Казымов","О.","А. о.",10,16,95,null,"Низамова Лилия Габделхалимовна"," МБОУ «Гимназия №13 с татарским языком обучения» "]
[77,"Вахитовский","МБОУ «Гимназия №96»","Михеева","Е.","Я.",10,16,95,null,"Гиниатуллина Венера Ильдаровна","   МБОУ Гимназия №96"]
[78,"Советский","Муниципальное автономное общеобразовательное учреждение «Лицей – инженерный центр»","Аитов","А.","Б.",10,15,95,null,"Ковенко Дмитрий Дмитриевич"," Муниципальное автономное общеобразовательное учреждение «Лицей – инженерный центр» "]
[79,"Кировский","МБОУ «Средняя общеобразовательная школа №153»","Левицкая","Т.","И.",10,15,95,null,"Никитина Татьяна Васильевна","МБОУ «Средняя общеобразовательная школа №153» "]
[80,"Вахитовский","Общеобразовательная школа-интернат «Лицей имени Н. И. Лобачевского» К(П)ФУ","Насыбуллина","А.","Р.",10,15,95,null,"Билалова Дина Султановна","Общеобразовательная школа-интернат «Лицей имени Н. И. Лобачевского» К(П)ФУ "]
[81,"Вахитовский","МАОУ «Лицей №131»","Пирогов","А.","Э.",10,15,95,null,"Крылова Марина Сергеевна","        МАОУ «Лицей №131» "]
[82,"Кировский","МБОУ «Средняя русско-татарская общеобразовательная школа №57»","Напойкина","А.","В.",10,14,95,null,"Варфоломеева Зоя Владимировна","МБОУ «Средняя русско-татарская общеобразовательная школа №57» "]
[83,"Вахитовский","МАОУ «Средняя общеобразовательная школа №39 с углубленным изучением английского языка»","Уткина","Т.","С.",10,14,95,null,"Урунова Анна Валерьевна","МАОУ «Средняя общеобразовательная школа №39 с углубленным изучением английского языка» "]
[84,"Приволжский","МБОУ «Гимназия №6»","Цветкова","Е.","С.",10,14,95,null,"Гимадеева Чулпан Нуретдиновна","МБОУ «Гимназия №6» "]
[85,"Ново-Савиновский","МБОУ «Гимназия №155 с татарским языком обучения»","Юнусов","Р. ","Р.",10,14,95,null,"Нигматуллина Нурия Фаруковна","  МБОУ «Гимназия №155 с татарским языком обучения» "]
[86,"Ново-Савиновский","Муниципальное бюджетное общеобразовательное учреждение «Средняя общеобразовательная татарско-русская школа №113 с углублённым изучением отдельных предметов»","Журова   ","В.  ","И.",10,13,95,null,"Мухаметзянов Ильяс Мулланурович","Муниципальное бюджетное общеобразовательное учреждение «Средняя общеобразовательная татарско-русская школа №113 с углублённым изучением отдельных предметов» "]
[87,"Советский","Муниципальное автономное общеобразовательное учреждение «Лицей – инженерный центр»","Зайнуллина ","Ф.","И.",10,13,95,null,"Ковенко Дмитрий Дмитриевич","  Муниципальное автономное общеобразовательное учреждение «Лицей – инженерный центр» "]
[88,"Советский","МБОУ «Средняя общеобразовательная школа №175»","Коржуев  ","Д.","П.",10,13,95,null,"Хафизова Эльвира Закирзяновна","МБОУ «Средняя общеобразовательная школа №175» "]
[89,"Советский","МБОУ «Средняя общеобразовательная школа №175»","Мулюков  "," Э.","М.",10,13,95,null,"Хафизова Эльвира Закирзяновна","МБОУ «Средняя общеобразовательная школа №175» "]
[90,"Вахитовский","МАОУ «Лицей №131»","Нугайбиков","Э.","Р.",10,13,95,null,"Коган Дина Ильдусовна","   МАОУ «Лицей №131» "]
[91,"Ново-Савиновский","Муниципальное бюджетное общеобразовательное учреждение «Средняя общеобразовательная татарско-русская школа №113 с углублённым изучением отдельных предметов»","Салаева ","А.","М.",10,13,95,null,"Мухаметзянов Ильяс Мулланурович","Муниципальное бюджетное общеобразовательное учреждение «Средняя общеобразовательная татарско-русская школа №113 с углублённым изучением отдельных предметов» "]
[92,"Авиастроительный","МБОУ «Средняя общеобразовательная школа №33 с углубленным изучением отдельных предметов»","Бикмухаметова","А. ","М.",10,12,95,null,"Нуруллина Эльмира Рафиковна","МБОУ «Средняя общеобразовательная школа №33 с углубленным изучением отдельных предметов» "]
[93,"Вахитовский","МАОУ «Средняя общеобразовательная школа №39 с углубленным изучением английского языка»","Козин","Д.","Г.",10,12,95,null,"Урунова Анна Валерьевна","МАОУ «Средняя общеобразовательная школа №39 с углубленным изучением английского языка» "]
[94,"Московский","Муниципальное бюджетное общеобразовательное учреждение «Средняя общеобразовательная школа №20»","Ли","А.","С.",10,12,95,null,"Салимова Зайтуна Муфараковна","     Муниципальное бюджетное общеобразовательное учреждение «Средняя общеобразовательная школа №20» "]
[95,"Вахитовский","МАОУ «Средняя общеобразовательная школа №39 с углубленным изучением английского языка»","Файзуллина ","Д.","О.",10,12,95,null,"Урунова Анна Валерьевна","МАОУ «Средняя общеобразовательная школа №39 с углубленным изучением английского языка» "]
[96,"Советский","МБОУ «Гимназия №126»","Чиж","Е.","В.",10,12,95,null,"Гилязова Гульфия Габдулхаевна","МБОУ «Гимназия №126» "]
[97,"Вахитовский","МАОУ «Средняя общеобразовательная школа №39 с углубленным изучением английского языка»","Шамсутдинов","А.","С.",10,12,95,null,"Урунова Анна Валерьевна","МАОУ «Средняя общеобразовательная школа №39 с углубленным изучением английского языка» "]
[98,"Советский","МБОУ «Средняя общеобразовательная школа №171 с углубленным изучением отдельных предметов»","Флегонтов","И.","И.",10,11,95,null,"Владимирова Ильсияр Аглямовна","МБОУ «Средняя общеобразовательная школа №171 с углубленным изучением отдельных предметов» "]
[99,"Приволжский","МБОУ «Гимназия №6»","Яхваров","М.","Д.",10,11,95,null,"Гимадеева Чулпан Нуретдиновна","МБОУ «Гимназия №6» "]
[100,"Авиастроительный","МБОУ «Средняя общеобразовательная школа №33 с углубленным изучением отдельных предметов»","Паршина","А.","Ю.",10,10,95,null,"Нуруллина Эльмира Рафиковна","МБОУ «Средняя общеобразовательная школа №33 с углубленным изучением отдельных предметов» "]
[101,"Авиастроительный","МБОУ «Средняя общеобразовательная школа №33 с углубленным изучением отдельных предметов»","Тютикова","Л.","М.",10,10,95,null,"Нуруллина Эльмира Рафиковна","МБОУ «Средняя общеобразовательная школа №33 с углубленным изучением отдельных предметов» "]
[102,"Кировский","МБОУ «СОШ №137»","Черенкова","Е.","Д.",10,10,95,null,"Клековкина Любовь Анатольевна"," МБОУ «СОШ №137» "]
[103,"Вахитовский","МАОУ «Лицей №131»","Гайнутдинов","Р.","И.",10,9,95,null,"Крылова Марина Сергеевна","      МАОУ «Лицей №131» "]
[104,"Авиастроительный","МБОУ «Средняя общеобразовательная школа №33 с углубленным изучением отдельных предметов»","Щинов","Н.","А.",10,9,95,null,"Нуруллина Эльмира Рафиковна","  МБОУ «Средняя общеобразовательная школа №33 с углубленным изучением отдельных предметов» "]
[105,"Вахитовский","МАОУ «Средняя общеобразовательная школа №39 с углубленным изучением английского языка»","Абрамов","А.","О.",10,8,95,null,"Урунова Анна Валерьевна","МАОУ «Средняя общеобразовательная школа №39 с углубленным изучением английского языка» "]
[106,"Советский","МБОУ «Гимназия №126»","Борганов","И.","А.",10,8,95,null,"Гилязова Гульфия Габдулхаевна","МБОУ «Гимназия №126» "]
[107,"Ново-Савиновский","Муниципальное бюджетное общеобразовательное учреждение «Лицей № 177»","Зарипова","Э.","Д.",10,7,95,null,"Сагдетдинова Гульназ Ревалевна"," МБОУ «Лицей №177» "]
[108,"Приволжский","МБОУ «Татаро-английская гимназия №16»","Зайдова ","З.","И.",10,6,95,null,"Галиуллина Дина Айдаровна","МБОУ «Татаро-английская гимназия №16» "]
[109,"Вахитовский","МАОУ «Средняя общеобразовательная школа №39 с углубленным изучением английского языка»","Быстрых","М.","А.",10,4,95,null,"Урунова Анна Валерьевна","МАОУ «Средняя общеобразовательная школа №39 с углубленным изучением английского языка» "]
[110,"Вахитовский","МАОУ «Лицей №131»","Зарипова","А.","Г.",10,0,95,null,"Коган Дина Ильдусовна"," МАОУ «Лицей №131» "]
[111,"Приволжский","МАОУ «Гимназия №19»","Нутфуллина","А.","И.",11,62,95,"Победитель","Коган Дина Ильдусовна","МАОУ «Гимназия №19» "]
[112,"Вахитовский","Общеобразовательная школа-интернат «Лицей имени Н. И. Лобачевского» К(П)ФУ","Хусаинов","М. ","А.",11,51,95,"Призер","Билалова Дина Султановна","Общеобразовательная школа-интернат «Лицей имени Н. И. Лобачевского» К(П)ФУ "]
[113,"Ново-Савиновский","МАОУ «Средняя общеобразовательная школа №146 с углубленным изучением отдельных предметов»","Талипов","Т.","А.",11,50,{"$f":"10+20+30+20+15","v":95},"Призер",null,"МАОУ «Средняя общеобразовательная школа №146 с углубленным изучением отдельных предметов»"]
[114,"Вахитовский","Общеобразовательная школа-интернат «Лицей имени Н. И. Лобачевского» К(П)ФУ","Билалова","Н.","Ф.",11,48,95,"Призер","Володина Алена Игоревна","Общеобразовательная школа-интернат «Лицей имени Н. И. Лобачевского» К(П)ФУ "]
[115,"Вахитовский","ФГКОУ «Казанское суворовское военное училище  МО РФ»","Орлов","Б.","М.",11,36,95,null,"Арапов Константин Александрович","  ФГКОУ Казанское суворовское военное училище МО РФ"]
[116,"Советский","МБОУ «Гимназия №93 »","Хазеев","Р.","А.",11,26,95,null,"Гарифуллина Виктория Викторовна","        МБОУ «Гимназия №93 » "]
[117,"Московский","МБОУ «Гимназия №75 с этнокультурным русским компонентом»","Зайцева ","А.","Е.",11,24,95,null,"Симонов Юрий Федорович","  МБОУ «Гимназия №75 с этнокультурным русским компонентом» "]
[118,"Авиастроительный","МБОУ «Лицей №145»","Мартынов","А.","С.",11,24,95,null,"Фомина Евгения Александровна"," МБОУ «Лицей №145» "]
[119,"Ново-Савиновский","МБОУ «Средняя общеобразовательная школа № 9 с углубленным изучением английского языка»","Лученко","Е.","Л.",11,23,95,null,"Валеева Анна Борисовна","МБОУ «Средняя общеобразовательная школа № 9 с углубленным изучением английского языка» "]
[120,"Московский","МБОУ «Гимназия №75 с этнокультурным русским компонентом»","Павлова ","А.","В.",11,23,95,null,"Симонов Юрий Федорович","  МБОУ «Гимназия №75 с этнокультурным русским компонентом» "]
[121,"Ново-Савиновский","МБОУ «Средняя общеобразовательная школа №170 с углублённым изучением отдельных предметов»","Бариева","А.","Д.",11,20,95,null,"Аглямова Алиса Габдрашитовна","МБОУ «Средняя общеобразовательная школа №170 с углублённым изучением отдельных предметов» "]
[122,"Приволжский","МБОУ «Татаро-английская гимназия №16»","Залялеев","И.","М.",11,20,95,null,"Габидуллина Фарида Юнусовна","МБОУ «Татаро-английская гимназия №16» "]
[123,"Приволжский","МБОУ «Средняя общеобразовательная школа №82 с углубленным изучением отдельных предметов»","Бирюкова","В.","А.",11,19,95,null,"Зарубежнова Евгения Михайловна","МБОУ «Средняя общеобразовательная школа №82 с углубленным изучением отдельных предметов» "]
[124,"Кировский","МБОУ «Средняя общеобразовательная школа №70 с углубленным изучением отдельных предметов»","Сергеева","Е.","А.",11,19,95,null,"Никифорова Татьяна Егоровна","                     МБОУ «Средняя общеобразовательная школа №70 с углубленным изучением отдельных предметов» "]
[125,"Московский","МБОУ «Гимназия №75 с этнокультурным русским компонентом»","Халиков","А.","А.",11,19,95,null,"Симонов Юрий Федорович"," МБОУ «Гимназия №75 с этнокультурным русским компонентом» "]
[126,"Приволжский","МБОУ «Средняя общеобразовательная школа №82 с углубленным изучением отдельных предметов»","Бурганова","А.","К.",11,18,95,null,"Зарубежнова Евгения Михайловна","МБОУ «Средняя общеобразовательная школа №82 с углубленным изучением отдельных предметов» "]
[127,"Советский","МАОУ «Лицей № 121»","Гайнутдинов","М.","М.",11,18,95,null,"Хасанова Флера Анваровна","МАОУ «Лицей № 121» "]
[128,"Приволжский","МАОУ «Гимназия №19»","Мурзина","А.","А.",11,18,95,null,"Вишневский Тимур Дмитриевич","МАОУ «Гимназия №19» "]
[129,"Московский","МБОУ «Гимназия №9»","Камалиева","А.","Л.",11,17,95,null,"Мюллер Георгий Александрович","МБОУ «Гимназия №9» "]
[130,"Приволжский","МБОУ «Гимназия №6»","Куликов","М. ","А.",11,17,95,null,"Гимадеева Чулпан Нуретдиновна","МБОУ «Гимназия №6» "]
[131,"Советский","МАОУ «Лицей № 121»","Мифтахов","А.","М.",11,17,95,null,"Хасанова Флера Анваровна","МАОУ «Лицей № 121» "]
[132,"Приволжский","МБОУ «Средняя общеобразовательная школа №82 с углубленным изучением отдельных предметов»","Хуснутдинов","К.","Н.",11,17,95,null,"Зарубежнова Евгения Михайловна"," МБОУ «Средняя общеобразовательная школа №82 с углубленным изучением отдельных предметов» "]
[133,"Московский","МБОУ «Гимназия №122 имени Ж.А Зайцевой»","Абрамов-Иревли","Г.","Д.",11,16,95,null,"Садыков Жаудат Назипович","МБОУ «Гимназия №122 имени Ж.А Зайцевой» "]
[134,"Советский","МАОУ «Лицей № 121»","Купан","Л.","Т.",11,16,95,null,"Хасанова Флера Анваровна","МАОУ «Лицей № 121» "]
[135,"Авиастроительный","МБОУ «Лицей №145»","Садыков","А.","Н.",11,16,95,null,"Фомина Евгения Александровна","  МБОУ «Лицей №145» "]
[136,"Кировский","МБОУ «Средняя русско-татарская общеобразовательная школа №57»","Фазуллина","А.","А.",11,16,95,null,"Киляшова Кристина Алексеевна","МБОУ «Средняя русско-татарская общеобразовательная школа №57» "]
[137,"Приволжский","МБОУ «Средняя общеобразовательная школа №24 с углубленным изучением отдельных предметов»","Коннов","В.","В.",11,15,95,null,"Старшинова Виктория Александровна","  МБОУ «Средняя общеобразовательная школа №24 с углубленным изучением отдельных предметов» "]
[138,"Советский","МАОУ «Лицей № 121»","Фаттахова","Д.","М.",11,15,95,null,"Хасанова Флера Анваровна"," МАОУ «Лицей № 121» "]
[139,"Московский","ГБМБУ «КФУ каршындагы 2 нче татар гимназиясе» МБОУ «Татарская гимназия №2 при КФУ»","Зиннатуллина","А. ","Р.",11,14,95,null,"Фахртдинов Ильнар Ирекович"," ГБМБУ «КФУ каршындагы 2 нче татар гимназиясе» МБОУ «Татарская гимназия №2 при КФУ» "]
[140,"Московский","МБОУ «Гимназия №122 имени Ж.А Зайцевой»","Контурова","И.","А.",11,14,95,null,"Садыков Жаудат Назипович"," МБОУ «Гимназия №122 имени Ж.А Зайцевой» "]
[141,"Кировский","МБОУ «СОШ №137»","Литвинова","Н. ","А.",11,14,95,null,"Клековкина Любовь Анатольевна","МБОУ «СОШ №137» "]
[142,"Ново-Савиновский","МБОУ «Средняя общеобразовательная школа №170 с углублённым изучением отдельных предметов»","Чудинова","Д.","С.",11,14,95,null,"Аглямова Алиса Габдрашитовна","МБОУ «Средняя общеобразовательная школа №170 с углублённым изучением отдельных предметов» "]
[143,"Вахитовский","ФГКОУ «Казанское суворовское военное училище  МО РФ»","Шаймарданов","О.","Р.",11,14,95,null,"Арапов Константин Александрович"," ФГКОУ Казанское суворовское военное училище МО РФ"]
[144,"Кировский","МБОУ «Средняя общеобразовательная школа №70 с углубленным изучением отдельных предметов»","Киямдинов","И.","Р.",11,13,95,null,"Никифорова Татьяна Егоровна","                   МБОУ «Средняя общеобразовательная школа №70 с углубленным изучением отдельных предметов» "]
[145,"Вахитовский","МБОУ «Гимназия №3»","Мухамадиев","Г.","Д.",11,13,95,null,"Хабибуллина Фарида Кутдусовна","    МБОУ «Гимназия №3» "]
[146,"Авиастроительный","МБОУ «Гимназия №10»","Сиразеева ","А.","Р.",11,13,95,null,"Валитова Зульфия Камилевна","  МБОУ «Гимназия №10» "]
[147,"Ново-Савиновский","МБОУ «Средняя общеобразовательная татарско-русская школа №23 с углубленным изучением отдельных предметов»","Белалова","А.","Р.",11,12,95,null,"Краюшкина Любовь Викторовна","МБОУ «Средняя общеобразовательная татарско-русская школа №23 с углубленным изучением отдельных предметов» "]
[148,"Ново-Савиновский","Муниципальное бюджетное общеобразовательное учреждение «Средняя общеобразовательная татарско-русская школа №113 с углублённым изучением отдельных предметов»","Усанова ","Л. ","А.  ",11,12,95,null,"Мухаметзянов Ильяс Мулланурович","Муниципальное бюджетное общеобразовательное учреждение «Средняя общеобразовательная татарско-русская школа №113 с углублённым изучением отдельных предметов» "]
[149,"Советский","МБОУ «Гимназия №93 »","Гайсина","А.","Р.",11,11,95,null,"Гарифуллина Виктория Викторовна","       МБОУ «Гимназия №93 » "]
[150,"Московский","МБОУ «Гимназия №122 имени Ж.А Зайцевой»","Ганиева","Р.","А.",11,10,95,null,"Садыков Жаудат Назипович","МБОУ «Гимназия №122 имени Ж.А Зайцевой» "]
[151,"Московский","Муниципальное бюджетное общеобразовательное учреждение «Средняя общеобразовательная школа №20»","Закирова","К.","О.",11,10,95,null,"Салимова Зайтуна Муфараковна","     Муниципальное бюджетное общеобразовательное учреждение «Средняя общеобразовательная школа №20» "]
[152,"Ново-Савиновский","МБОУ «Средняя общеобразовательная школа №170 с углублённым изучением отдельных предметов»","Мингалеев","И.","М.",11,10,95,null,"Аглямова Алиса Габдрашитовна","     МБОУ «Средняя общеобразовательная школа №170 с углублённым изучением отдельных предметов» "]
[153,"Московский","МБОУ «Гимназия №122 имени Ж.А Зайцевой»","Норкин","М.","М.",11,10,95,null,"Садыков Жаудат Назипович"," МБОУ «Гимназия №122 имени Ж.А Зайцевой» "]
[154,"Московский","Муниципальное бюджетное общеобразовательное учреждение «Средняя общеобразовательная школа №20»","Петров","Ю.","В.",11,10,95,null,"Салимова Зайтуна Муфараковна","       Муниципальное бюджетное общеобразовательное учреждение «Средняя общеобразовательная школа №20» "]
[155,"Ново-Савиновский","МБОУ «Средняя общеобразовательная школа №170 с углублённым изучением отдельных предметов»","Гурьянова ","А. ","А.",11,9,95,null,"Аглямова Алиса Габдрашитовна","    МБОУ «Средняя общеобразовательная школа №170 с углублённым изучением отдельных предметов» "]
[156,"Советский","МАОУ «Средняя общеобразовательная школа №141 с углубленным изучением отдельных предметов»","Китаев","И.","А.",11,9,95,null,"Гогонина Светлана Владимировна","МАОУ «Средняя общеобразовательная школа №141 с углубленным изучением отдельных предметов» "]
[157,"Приволжский","МБОУ «Татаро-английская гимназия №16»","Рагузин","Б.","В.",11,9,95,null,"Габидуллина Фарида Юнусовна","МБОУ «Татаро-английская гимназия №16» "]
[158,"Советский","МАОУ «Лицей № 121»","Рябинин","Д.","Д.",11,8,95,null,"Хасанова Флера Анваровна","МАОУ «Лицей № 121» "]
[159,"Московский","ГБМБУ «КФУ каршындагы 2 нче татар гимназиясе» МБОУ «Татарская гимназия №2 при КФУ»","Фахриева ","Э.","А.",11,8,95,null,"Фахртдинов Ильнар Ирекович"," ГБМБУ «КФУ каршындагы 2 нче татар гимназиясе» МБОУ «Татарская гимназия №2 при КФУ» "]
[160,"Московский","Муниципальное бюджетное общеобразовательное учреждение «Средняя общеобразовательная школа №20»","Анисимов","А.","В.",11,7,95,null,"Салимова Зайтуна Муфараковна","      Муниципальное бюджетное общеобразовательное учреждение «Средняя общеобразовательная школа №20» "]
[161,"Кировский","МБОУ «Средняя общеобразовательная школа №153»","Давыдова","Ю.","В.",11,7,95,null,"Никитина Татьяна Васильевна","МБОУ «Средняя общеобразовательная школа №153» "]
[162,"Ново-Савиновский","Муниципальное бюджетное общеобразовательное учреждение «Средняя общеобразовательная татарско-русская школа №113 с углублённым изучением отдельных предметов»","Мусаткина ","У.   ","Е. ",11,7,95,null,"Мухаметзянов Ильяс Мулланурович","Муниципальное бюджетное общеобразовательное учреждение «Средняя общеобразовательная татарско-русская школа №113 с углублённым изучением отдельных предметов» "]
[163,"Приволжский","МБОУ «Гимназия №21»","Канзаев","Д.","С.",11,5,95,null,"Филюнин Владимир Александрович","  МБОУ «Гимназия №21» "]
[164,"Советский","МБОУ «Средняя общеобразовательная школа №175»","Мухамедшина   ","Д.","Р.",11,2,95,null,"Саляхутдинова Гульназ Шамилевна"," МБОУ «Средняя общеобразовательная школа №175» "]